fUST/lending_fUST_20251207
["ID","MTS","AMOUNT","RATE_DAILY","PERIOD"]
[396564468,1765052128065,-500.0,7.005e-05,2]
[396564469,1765052128101,-500.0,7.005e-05,2]
[396564470,1765052128135,-500.0,7.005e-05,2]
[396564471,1765052128170,-500.0,7.005e-05,2]
[396564472,1765052141711,2064.60970406,6.936e-05,2]
[396564473,1765052141737,6093.67335005,6.936e-05,2]
[396564474,1765052147033,-11.71855381,7.006e-05,2]
[396564475,1765052147077,-10000.01,7.006e-05,2]
[396564476,1765052147149,-10000.01,7.006e-05,2]
[396564477,1765052147333,-10000.01,7.006e-05,2]
[396564478,1765052147416,-10000.01,7.006e-05,2]
[396564479,1765052147570,-10000.01,7.006e-05,2]
[396564480,1765052155576,-10000.01,7.006e-05,2]
[396564481,1765052155714,-10000.01,7.006e-05,2]
[396564482,1765052155855,-10000.01,7.006e-05,2]
[396564483,1765052156005,-10000.01,7.006e-05,2]
[396564484,1765052156569,-10000.01,7.006e-05,2]
[396564485,1765052164964,-10000.01,6.936e-05,2]
[396564486,1765052165180,-3084.83802899,6.936e-05,2]
[396564487,1765052165231,-3830.33394202,7.006e-05,2]
[396564488,1765052165294,-10000.01,7.006e-05,2]
[396564489,1765052175031,-1618.87066669,6.935e-05,2]
[396564490,1765052175066,-500.0,7.005e-05,2]
[396564491,1765052175101,-500.0,7.005e-05,2]
[396564492,1765052175135,-500.0,7.005e-05,2]
[396564493,1765052175170,-500.0,7.005e-05,2]
[396564494,1765052175206,-500.0,7.005e-05,2]
[396564495,1765052175242,-500.0,7.005e-05,2]
[396564496,1765052175276,-262.26866662,7.005e-05,2]
[396564497,1765052175515,-237.73133338,7.005e-05,2]
[396564498,1765052175550,-500.0,7.005e-05,2]
[396564499,1765052175585,-500.0,7.005e-05,2]
[396564500,1765052175620,-500.0,7.005e-05,2]
[396564501,1765052175655,-500.0,7.005e-05,2]
[396564502,1765052175690,-500.0,7.005e-05,2]
[396564503,1765052175725,-500.0,7.005e-05,2]
[396564504,1765052175760,-500.0,7.005e-05,2]
[396564505,1765052175796,-500.0,7.005e-05,2]
[396564506,1765052175840,-500.0,7.005e-05,2]
[396564507,1765052175875,-24.54733324,7.005e-05,2]
[396564508,1765052176095,-475.45266676,7.005e-05,2]
[396564509,1765052176129,-500.0,7.005e-05,2]
[396564510,1765052176164,-500.0,7.005e-05,2]
[396564511,1765052176198,-500.0,7.005e-05,2]
[396564512,1765052176232,-500.0,7.005e-05,2]
[396564513,1765052176267,-500.0,7.005e-05,2]
[396564514,1765052176302,-500.0,7.005e-05,2]
[396564515,1765052176337,-500.0,7.005e-05,2]
[396564516,1765052176372,-500.0,7.005e-05,2]
[396564517,1765052176406,-500.0,7.005e-05,2]
[396564518,1765052176508,-500.0,7.005e-05,2]
[396564519,1765052176544,-500.0,7.005e-05,2]
[396564520,1765052176580,-500.0,7.005e-05,2]
[396564521,1765052176614,-500.0,7.005e-05,2]
[396564522,1765052176649,-500.0,7.005e-05,2]
[396564523,1765052176683,-500.0,7.005e-05,2]
[396564524,1765052176718,-500.0,7.005e-05,2]
[396564525,1765052176752,-500.0,7.005e-05,2]
[396564526,1765052176788,-500.0,7.005e-05,2]
[396564527,1765052176825,-500.0,7.005e-05,2]
[396564528,1765052177718,-500.0,7.005e-05,2]
[396564529,1765052177753,-500.0,7.005e-05,2]
[396564530,1765052177788,-500.0,7.005e-05,2]
[396564531,1765052177823,-500.0,7.005e-05,2]
[396564532,1765052177858,-500.0,7.005e-05,2]
[396564533,1765052177893,-500.0,7.005e-05,2]
[396564534,1765052177930,-500.0,7.005e-05,2]
[396564535,1765052177964,-500.0,7.005e-05,2]
[396564536,1765052177998,-500.0,7.005e-05,2]
[396564537,1765052178032,-500.0,7.005e-05,2]
[396564538,1765052178192,-500.0,7.005e-05,2]
[396564539,1765052178227,-500.0,7.005e-05,2]
[396564540,1765052178262,-651.79592085,7.005e-05,2]
[396564541,1765052178296,-500.0,7.005e-05,2]
[396564542,1765052178331,-500.0,7.005e-05,2]
[396564543,1765052179301,-286.85599986,7.006e-05,2]
[396564544,1765052179322,-500.0,7.006e-05,2]
[396564545,1765052179343,-4696.4181583,7.006e-05,2]
[396564546,1765052179661,522.08,6.6e-05,2]
[396564547,1765052184073,-522.08,6.8e-05,2]
[396564548,1765052203861,190.61,6.706e-05,2]
[396564549,1765052238453,355.93,6.6e-05,2]
[396564550,1765052238764,355.93,6.8e-05,2]
[396564551,1765052239061,-154.44314768,6.952e-05,2]
[396564552,1765052239102,355.93,6.9e-05,2]
[396564553,1765052252888,-186.74519541,6.952e-05,2]
[396564554,1765052252916,-85.02314283,7.004e-05,2]
[396564555,1765052254968,-184.80817634,7.004e-05,2]
[396564556,1765052261454,-649.36920599,7.004e-05,2]
[396564557,1765052261486,-919.20052516,7.004e-05,2]
[396564558,1765052261517,-919.20052516,7.004e-05,2]
[396564559,1765052261548,-919.20052516,7.004e-05,2]
[396564560,1765052261580,-919.20052516,7.004e-05,2]
[396564561,1765052261612,-428.46686158,7.004e-05,2]
[396564562,1765052261670,-490.73366358,7.004e-05,2]
[396564563,1765052261702,-919.20052516,7.004e-05,2]
[396564564,1765052261734,-919.20052516,7.004e-05,2]
[396564565,1765052261765,-919.20052516,7.004e-05,2]
[396564566,1765052261794,-919.20052516,7.004e-05,2]
[396564567,1765052261825,-745.7379464,7.004e-05,2]
[396564568,1765052262012,-173.46257876,7.004e-05,2]
[396564569,1765052262044,-919.20052516,7.004e-05,2]
[396564570,1765052262337,-919.20052516,7.004e-05,2]
[396564571,1765052262375,-919.20052516,7.004e-05,2]
[396564572,1765052262411,-919.20052516,7.004e-05,2]
[396564573,1765052262447,-919.20052516,7.004e-05,2]
[396564574,1765052262642,-919.20052516,7.004e-05,2]
[396564575,1765052262677,-919.20052516,7.004e-05,2]
[396564576,1765052262709,-919.20052516,7.004e-05,2]
[396564577,1765052262742,-919.20052516,7.004e-05,2]
[396564578,1765052262774,-919.20052516,7.004e-05,2]
[396564579,1765052262920,-919.20052516,7.004e-05,2]
[396564580,1765052262952,-919.20052516,7.004e-05,2]
[396564581,1765052262986,-919.20052516,7.004e-05,2]
[396564582,1765052263019,-919.20052516,7.004e-05,2]
[396564583,1765052263052,-919.20052516,7.004e-05,2]
[396564584,1765052263228,-919.20052516,7.004e-05,2]
[396564585,1765052263260,-919.20052516,7.004e-05,2]
[396564586,1765052263291,-919.20052516,7.004e-05,2]
[396564587,1765052263322,-919.20052516,7.004e-05,2]
[396564588,1765052263354,-919.20052516,7.004e-05,2]
[396564589,1765052263487,-919.20052516,7.004e-05,2]
[396564590,1765052263522,-919.20052516,7.004e-05,2]
[396564591,1765052263556,-919.20052516,7.004e-05,2]
[396564592,1765052263587,-919.20052516,7.004e-05,2]
[396564593,1765052263619,-919.20052516,7.004e-05,2]
[396564594,1765052263708,-919.20052516,7.004e-05,2]
[396564595,1765052263741,-919.20052516,7.004e-05,2]
[396564596,1765052263776,-919.20052516,7.004e-05,2]
[396564597,1765052263810,-919.20052516,7.004e-05,2]
[396564598,1765052263847,-919.20052516,7.004e-05,2]
[396564599,1765052264005,-919.20052516,7.004e-05,2]
[396564600,1765052264037,-919.20052516,7.004e-05,2]
[396564601,1765052264069,-919.20052516,7.004e-05,2]
[396564602,1765052264101,-919.20052516,7.004e-05,2]
[396564603,1765052264132,-919.20052516,7.004e-05,2]
[396564604,1765052265501,-230.09747458,7.004e-05,2]
[396564605,1765052265516,-689.10305058,7.004e-05,2]
[396564606,1765052265526,-230.09747458,7.004e-05,2]
[396564607,1765052265553,-689.10305058,7.004e-05,2]
[396564608,1765052265562,-230.09747458,7.004e-05,2]
[396564609,1765052265578,-689.10305058,7.004e-05,2]
[396564610,1765052265587,-230.09747458,7.004e-05,2]
[396564611,1765052265603,-689.10305058,7.004e-05,2]
[396564612,1765052265614,-230.09747458,7.004e-05,2]
[396564613,1765052265635,-689.10305058,7.004e-05,2]
[396564614,1765052265645,-118.90169782,7.004e-05,2]
[396564615,1765052268303,-800.29882734,7.004e-05,2]
[396564616,1765052268340,-919.20052516,7.004e-05,2]
[396564617,1765052268376,-919.20052516,7.004e-05,2]
[396564618,1765052268412,-919.20052516,7.004e-05,2]
[396564619,1765052268444,-919.20052516,7.004e-05,2]
[396564620,1765052268477,-126.60761888,7.004e-05,2]
[396564621,1765052268596,-792.59290628,7.004e-05,2]
[396564622,1765052268632,-919.20052516,7.004e-05,2]
[396564623,1765052268665,-919.20052516,7.004e-05,2]
[396564624,1765052268697,-919.20052516,7.004e-05,2]
[396564625,1765052268729,-2224.10678771,7.004e-05,2]
[396564626,1765052268828,-36.59327362,7.004e-05,2]
[396564627,1765052268869,-2187.51351409,7.004e-05,2]
[396564628,1765052268901,-2224.10678771,7.004e-05,2]
[396564629,1765052269015,-1176.7693964,7.004e-05,2]
[396564630,1765052272741,-1047.33739131,7.004e-05,2]
[396564631,1765052272774,-2224.10678771,7.004e-05,2]
[396564632,1765052272807,-1233.01485425,7.004e-05,2]
[396564633,1765052272880,-991.09193346,7.004e-05,2]
[396564634,1765052272936,-2224.10678771,7.004e-05,2]
[396564635,1765052272975,-2224.10678771,7.004e-05,2]
[396564636,1765052273035,-1103.58284916,7.004e-05,2]
[396564637,1765052287943,195.88,6.639e-05,2]
[396564638,1765052289688,-195.88,6.706e-05,2]
[396564639,1765052297489,536.45,6.6e-05,2]
[396564640,1765052303972,-187.9929911,6.8e-05,2]
[396564641,1765052307252,-232.35330873,6.8e-05,2]
[396564642,1765052312899,-116.10370017,6.8e-05,2]
[396564643,1765052312922,-74.62629983,6.865e-05,2]
[396564644,1765052317954,-127.71792453,6.865e-05,2]
[396564645,1765052317976,-30.13207547,6.9e-05,2]
[396564646,1765052320559,-160.26,6.9e-05,2]
[396564647,1765052333796,1886.30337352,0.00013107,3]
[396564648,1765052334481,346.05792453,6.831e-05,2]
[396564649,1765052357393,300.0,6.836e-05,2]
[396564650,1765052361261,374.99,6.6e-05,2]
[396564651,1765052361554,374.99,6.8e-05,2]
[396564652,1765052364403,195.65,6.757e-05,2]
[396564653,1765052378193,-374.99,6.9e-05,2]
[396564654,1765052379930,228.10671226,6.831e-05,2]
[396564655,1765052398941,-300.0,6.905e-05,2]
[396564656,1765052401205,179.0,6.905e-05,2]
[396564657,1765052402780,300.0,6.905e-05,2]
[396564658,1765052413176,-209.0,6.906e-05,2]
[396564659,1765052420341,522.95,6.6e-05,2]
[396564660,1765052420693,522.95,6.8e-05,2]
[396564661,1765052421110,522.95,6.9e-05,2]
[396564662,1765052430583,-5595.91536321,6.906e-05,2]
[396564663,1765052430752,-10000.01,6.906e-05,2]
[396564664,1765052430798,-10000.01,6.906e-05,2]
[396564665,1765052430858,-10000.01,6.906e-05,2]
[396564666,1765052431030,-10000.01,6.906e-05,2]
[396564667,1765052431259,-10000.01,6.906e-05,2]
[396564668,1765052431698,-10000.01,6.906e-05,2]
[396564669,1765052432058,-10000.01,6.906e-05,2]
[396564670,1765052432388,-10000.01,6.906e-05,2]
[396564671,1765052441042,-218.26628398,6.905e-05,2]
[396564672,1765052441071,-372.19576854,6.905e-05,2]
[396564673,1765052441105,-500.0,6.905e-05,2]
[396564674,1765052441143,-500.0,6.905e-05,2]
[396564675,1765052441177,-500.0,6.905e-05,2]
[396564676,1765052441214,-1137.55307679,6.905e-05,2]
[396564677,1765052441247,-500.0,6.905e-05,2]
[396564678,1765052441283,-1137.55307679,6.905e-05,2]
[396564679,1765052441638,-268.8735878,6.905e-05,2]
[396564680,1765052472481,-193.16,6.802e-05,2]
[396564681,1765052472505,-35.66654613,6.904e-05,2]
[396564682,1765052473002,193.16,6.734e-05,2]
[396564683,1765052478523,329.99,6.6e-05,2]
[396564684,1765052481036,329.99,6.732e-05,2]
[396564685,1765052483818,-183.07232831,6.8e-05,2]
[396564686,1765052486617,1727.32579965,0.00013107,3]
[396564687,1765052492481,-146.91767169,6.8e-05,2]
[396564688,1765052506150,329.99,6.763e-05,2]
[396564689,1765052511750,-329.99,6.831e-05,2]
[396564690,1765052513920,329.99,6.763e-05,2]
[396564691,1765052522002,329.99,6.831e-05,2]
[396564692,1765052524607,185.87509031,6.829e-05,2]
[396564693,1765052526101,198.16,6.705e-05,2]
[396564694,1765052528287,-300.0,6.904e-05,2]
[396564695,1765052529932,300.0,6.835e-05,2]
[396564696,1765052536865,3892.2444106,6.528e-05,2]
[396564697,1765052537844,340.9305895,6.835e-05,2]
[396564698,1765052545373,340.9305895,6.835e-05,2]
[396564699,1765052546420,511.41,6.6e-05,2]
[396564700,1765052546700,511.41,6.8e-05,2]
[396564701,1765052546977,511.41,6.9e-05,2]
[396564702,1765052553464,340.9305895,6.835e-05,2]
[396564703,1765052557425,500.0,6.904e-05,2]
[396564704,1765052557473,500.0,6.904e-05,2]
[396564705,1765052557545,500.0,6.904e-05,2]
[396564706,1765052557672,500.0,6.904e-05,2]
[396564707,1765052557717,500.0,6.904e-05,2]
[396564708,1765052557763,500.0,6.904e-05,2]
[396564709,1765052557806,500.0,6.904e-05,2]
[396564710,1765052557871,500.0,6.904e-05,2]
[396564711,1765052557979,500.0,6.904e-05,2]
[396564712,1765052558025,500.0,6.904e-05,2]
[396564713,1765052558086,500.0,6.904e-05,2]
[396564714,1765052558121,500.0,6.904e-05,2]
[396564715,1765052558163,500.0,6.904e-05,2]
[396564716,1765052558198,500.0,6.904e-05,2]
[396564717,1765052558239,500.0,6.904e-05,2]
[396564718,1765052558274,283.918821,6.904e-05,2]
[396564719,1765052558301,216.081179,6.904e-05,2]
[396564720,1765052558377,500.0,6.904e-05,2]
[396564721,1765052558415,500.0,6.904e-05,2]
[396564722,1765052558456,500.0,6.904e-05,2]
[396564723,1765052558491,500.0,6.904e-05,2]
[396564724,1765052558531,500.0,6.904e-05,2]
[396564725,1765052558674,500.0,6.904e-05,2]
[396564726,1765052558799,500.0,6.904e-05,2]
[396564727,1765052558833,500.0,6.904e-05,2]
[396564728,1765052558873,500.0,6.904e-05,2]
[396564729,1765052558915,500.0,6.904e-05,2]
[396564730,1765052558988,500.0,6.904e-05,2]
[396564731,1765052559022,500.0,6.904e-05,2]
[396564732,1765052559055,500.0,6.904e-05,2]
[396564733,1765052559095,500.0,6.904e-05,2]
[396564734,1765052559136,500.0,6.904e-05,2]
[396564735,1765052559180,500.0,6.904e-05,2]
[396564736,1765052559230,286.35398705,6.904e-05,2]
[396564737,1765052559315,500.0,6.904e-05,2]
[396564738,1765052559350,500.0,6.904e-05,2]
[396564739,1765052559394,497.57483395,6.904e-05,2]
[396564740,1765052559420,2.42516605,6.904e-05,2]
[396564741,1765052559456,500.0,6.904e-05,2]
[396564742,1765052559489,500.0,6.904e-05,2]
[396564743,1765052559536,500.0,6.904e-05,2]
[396564744,1765052559582,500.0,6.904e-05,2]
[396564745,1765052560842,500.0,6.904e-05,2]
[396564746,1765052562844,-340.9305895,6.905e-05,2]
[396564747,1765052564294,500.0,6.904e-05,2]
[396564748,1765052564352,500.0,6.904e-05,2]
[396564749,1765052564398,500.0,6.904e-05,2]
[396564750,1765052564443,500.0,6.904e-05,2]
[396564751,1765052564488,500.0,6.904e-05,2]
[396564752,1765052564536,500.0,6.904e-05,2]
[396564753,1765052564602,500.0,6.904e-05,2]
[396564754,1765052564641,500.0,6.904e-05,2]
[396564755,1765052564692,500.0,6.904e-05,2]
[396564756,1765052564749,500.0,6.904e-05,2]
[396564757,1765052564781,500.0,6.904e-05,2]
[396564758,1765052564816,500.0,6.904e-05,2]
[396564759,1765052564858,500.0,6.904e-05,2]
[396564760,1765052564900,500.0,6.904e-05,2]
[396564761,1765052564934,500.0,6.904e-05,2]
[396564762,1765052564983,500.0,6.904e-05,2]
[396564763,1765052565023,560.66682354,6.904e-05,2]
[396564764,1765052565072,500.0,6.904e-05,2]
[396564765,1765052565105,-207.97703437,6.906e-05,2]
[396564766,1765052565524,257.48199746,6.904e-05,2]
[396564767,1765052565550,242.51800254,6.904e-05,2]
[396564768,1765052565599,500.0,6.904e-05,2]
[396564769,1765052565651,500.0,6.904e-05,2]
[396564770,1765052565716,500.0,6.904e-05,2]
[396564771,1765052565797,500.0,6.904e-05,2]
[396564772,1765052565839,435.49425378,6.904e-05,2]
[396564773,1765052565880,404.2850252,6.904e-05,2]
[396564774,1765052565915,500.0,6.904e-05,2]
[396564775,1765052565994,500.0,6.904e-05,2]
[396564776,1765052566067,536.1653058,6.904e-05,2]
[396564777,1765052568501,5381.54741268,6.837e-05,2]
[396564778,1765052568525,10000.01,6.837e-05,2]
[396564779,1765052568549,10000.01,6.837e-05,2]
[396564780,1765052568573,10000.01,6.837e-05,2]
[396564781,1765052568597,648.33575327,6.837e-05,2]
[396564782,1765052569196,1436.51190752,6.904e-05,2]
[396564783,1765052569249,1436.51190752,6.904e-05,2]
[396564784,1765052569300,1436.51190752,6.904e-05,2]
[396564785,1765052569337,1436.51190752,6.904e-05,2]
[396564786,1765052569381,1436.51190752,6.904e-05,2]
[396564787,1765052569425,1436.51190752,6.904e-05,2]
[396564788,1765052569466,732.60280161,6.904e-05,2]
[396564789,1765052569493,703.90910591,6.904e-05,2]
[396564790,1765052569542,1436.51190752,6.904e-05,2]
[396564791,1765052569598,1436.51190752,6.904e-05,2]
[396564792,1765052569632,1436.51190752,6.904e-05,2]
[396564793,1765052569673,1436.51190752,6.904e-05,2]
[396564794,1765052569713,1436.51190752,6.904e-05,2]
[396564795,1765052569767,1436.51190752,6.904e-05,2]
[396564796,1765052569906,677.02944897,6.904e-05,2]
[396564797,1765052571731,-759.48245855,6.904e-05,2]
[396564798,1765052571763,-1436.51190752,6.904e-05,2]
[396564799,1765052571796,-1436.51190752,6.904e-05,2]
[396564800,1765052571828,-1298.4855453,6.904e-05,2]
[396564801,1765052581635,-2028.81310521,6.835e-05,2]
[396564802,1765052582174,-4057.62621042,6.835e-05,2]
[396564803,1765052582306,-1884.75757916,6.835e-05,2]
[396564804,1765052584148,166.35598414,6.834e-05,2]
[396564805,1765052598596,-1200.0,6.903e-05,2]
[396564806,1765052598628,-300.0,6.903e-05,2]
[396564807,1765052599233,344.53,6.6e-05,2]
[396564808,1765052599522,344.53,6.8e-05,2]
[396564809,1765052599843,344.53,6.9e-05,2]
[396564810,1765052607828,195.64,6.698e-05,2]
[396564811,1765052611214,150.0,0.00013572,30]
[396564812,1765052611601,167.69,0.00014218,30]
[396564813,1765052612007,251.53,0.00014865,30]
[396564814,1765052614787,-138.02636222,6.904e-05,2]
[396564815,1765052614823,-1436.51190752,6.904e-05,2]
[396564816,1765052614857,-1436.51190752,6.904e-05,2]
[396564817,1765052614892,-1436.51190752,6.904e-05,2]
[396564818,1765052615108,-1436.51190752,6.904e-05,2]
[396564819,1765052615140,-1436.51190752,6.904e-05,2]
[396564820,1765052615174,-1436.51190752,6.904e-05,2]
[396564821,1765052615283,-1436.51190752,6.904e-05,2]
[396564822,1765052615316,-1436.51190752,6.904e-05,2]
[396564823,1765052615351,-1436.51190752,6.904e-05,2]
[396564824,1765052615469,-1436.51190752,6.904e-05,2]
[396564825,1765052615504,-1436.51190752,6.904e-05,2]
[396564826,1765052615537,-1436.51190752,6.904e-05,2]
[396564827,1765052615735,-1436.51190752,6.904e-05,2]
[396564828,1765052615769,-1436.51190752,6.904e-05,2]
[396564829,1765052615803,-1436.51190752,6.904e-05,2]
[396564830,1765052616053,-1436.51190752,6.904e-05,2]
[396564831,1765052616303,-1436.51190752,6.904e-05,2]
[396564832,1765052616342,-1436.51190752,6.904e-05,2]
[396564833,1765052616474,-1436.51190752,6.904e-05,2]
[396564834,1765052616507,-1436.51190752,6.904e-05,2]
[396564835,1765052616539,-1436.51190752,6.904e-05,2]
[396564836,1765052621592,-1436.51190752,6.904e-05,2]
[396564837,1765052621626,-1436.51190752,6.904e-05,2]
[396564838,1765052621660,-1436.51190752,6.904e-05,2]
[396564839,1765052621850,-1436.51190752,6.904e-05,2]
[396564840,1765052621885,-1436.51190752,6.904e-05,2]
[396564841,1765052621921,-1436.51190752,6.904e-05,2]
[396564842,1765052621991,-1436.51190752,6.904e-05,2]
[396564843,1765052622026,-1436.51190752,6.904e-05,2]
[396564844,1765052622057,-500.0,6.904e-05,2]
[396564845,1765052622087,-500.0,6.904e-05,2]
[396564846,1765052622118,-274.08836382,6.904e-05,2]
[396564847,1765052622151,-183.25399059,6.904e-05,2]
[396564848,1765052631477,-162.90995115,6.904e-05,2]
[396564849,1765052634735,-188.49682959,6.904e-05,2]
[396564850,1765052635408,10000.01,6.835e-05,2]
[396564851,1765052635432,802.86797726,6.835e-05,2]
[396564852,1765052637402,-173.43486946,6.904e-05,2]
[396564853,1765052643497,-247.16595522,6.903e-05,2]
[396564854,1765052643628,1855.29765647,6.835e-05,2]
[396564855,1765052645498,-52.83404478,6.903e-05,2]
[396564856,1765052645521,-141.01987319,6.903e-05,2]
[396564857,1765052647656,-158.98012681,6.903e-05,2]
[396564858,1765052648581,-309.63688295,6.904e-05,2]
[396564859,1765052657913,-417.40216267,6.904e-05,2]
[396564860,1765052659324,309.63688295,6.835e-05,2]
[396564861,1765052660297,-87.39696528,6.904e-05,2]
[396564862,1765052660322,-287.86783038,6.904e-05,2]
[396564863,1765052660719,486.1,6.6e-05,2]
[396564864,1765052661373,486.1,6.8e-05,2]
[396564865,1765052661491,486.1,6.9e-05,2]
[396564866,1765052661698,-305.55076006,6.904e-05,2]
[396564867,1765052664184,-929.11306125,6.904e-05,2]
[396564868,1765052664219,-1522.53165169,6.904e-05,2]
[396564869,1765052664254,-1522.53165169,6.904e-05,2]
[396564870,1765052664288,-529.12561905,6.904e-05,2]
[396564871,1765052664470,-993.40603264,6.904e-05,2]
[396564872,1765052664503,-1522.53165169,6.904e-05,2]
[396564873,1765052664536,-1522.53165169,6.904e-05,2]
[396564874,1765052664569,-400.53967627,6.904e-05,2]
[396564875,1765052664697,-1121.99197542,6.904e-05,2]
[396564876,1765052664730,-1522.53165169,6.904e-05,2]
[396564877,1765052664763,-1522.53165169,6.904e-05,2]
[396564878,1765052664795,-143.36779071,6.904e-05,2]
[396564879,1765052664909,-1379.16386098,6.904e-05,2]
[396564880,1765052664944,-1522.53165169,6.904e-05,2]
[396564881,1765052664982,-1522.53165169,6.904e-05,2]
[396564882,1765052665264,-1522.53165169,6.904e-05,2]
[396564883,1765052665299,-1522.53165169,6.904e-05,2]
[396564884,1765052665334,-1522.53165169,6.904e-05,2]
[396564885,1765052665751,-1522.53165169,6.904e-05,2]
[396564886,1765052665784,-1522.53165169,6.904e-05,2]
[396564887,1765052665817,-1522.53165169,6.904e-05,2]
[396564888,1765052665916,-1522.53165169,6.904e-05,2]
[396564889,1765052665952,-1522.53165169,6.904e-05,2]
[396564890,1765052665991,-1522.53165169,6.904e-05,2]
[396564891,1765052666219,-1522.53165169,6.904e-05,2]
[396564892,1765052666255,-1522.53165169,6.904e-05,2]
[396564893,1765052666289,-1522.53165169,6.904e-05,2]
[396564894,1765052666322,-364.82008986,6.904e-05,2]
[396564895,1765052671041,-305.55076006,6.835e-05,2]
[396564896,1765052671072,-135.17991014,6.904e-05,2]
[396564897,1765052671102,-224.15624934,6.904e-05,2]
[396564898,1765052671133,-500.0,6.904e-05,2]
[396564899,1765052671165,-500.0,6.904e-05,2]
[396564900,1765052671195,-500.0,6.904e-05,2]
[396564901,1765052671223,-374.67699199,6.904e-05,2]
[396564902,1765052671254,-224.41207098,6.904e-05,2]
[396564903,1765052671287,-500.0,6.904e-05,2]
[396564904,1765052671318,-500.0,6.904e-05,2]
[396564905,1765052671348,-349.18625041,6.904e-05,2]
[396564906,1765052671381,-500.0,6.904e-05,2]
[396564907,1765052671469,-1174.3995393,6.904e-05,2]
[396564908,1765052671504,-1174.3995393,6.904e-05,2]
[396564909,1765052671538,-1174.3995393,6.904e-05,2]
[396564910,1765052671570,-1174.3995393,6.904e-05,2]
[396564911,1765052671798,-1174.3995393,6.904e-05,2]
[396564912,1765052671835,-1174.3995393,6.904e-05,2]
[396564913,1765052671871,-1174.3995393,6.904e-05,2]
[396564914,1765052671906,-1174.3995393,6.904e-05,2]
[396564915,1765052672102,-1174.3995393,6.904e-05,2]
[396564916,1765052672138,-1174.3995393,6.904e-05,2]
[396564917,1765052672171,-1174.3995393,6.904e-05,2]
[396564918,1765052672203,-1174.3995393,6.904e-05,2]
[396564919,1765052673300,-180.18003834,6.904e-05,2]
[396564920,1765052675705,-234.93666018,6.904e-05,2]
[396564921,1765052678125,-759.28284078,6.904e-05,2]
[396564922,1765052678160,-1174.3995393,6.904e-05,2]
[396564923,1765052678194,-1174.3995393,6.904e-05,2]
[396564924,1765052678227,-1174.3995393,6.904e-05,2]
[396564925,1765052678261,-260.64754334,6.904e-05,2]
[396564926,1765052678512,-913.75199596,6.904e-05,2]
[396564927,1765052678549,-1174.3995393,6.904e-05,2]
[396564928,1765052678586,-1174.3995393,6.904e-05,2]
[396564929,1765052678621,-1174.3995393,6.904e-05,2]
[396564930,1765052678704,-1174.3995393,6.904e-05,2]
[396564931,1765052678741,-1174.3995393,6.904e-05,2]
[396564932,1765052678776,-1174.3995393,6.904e-05,2]
[396564933,1765052678812,-1174.3995393,6.904e-05,2]
[396564934,1765052679247,-1174.3995393,6.904e-05,2]
[396564935,1765052679279,-1174.3995393,6.904e-05,2]
[396564936,1765052679311,-1174.3995393,6.904e-05,2]
[396564937,1765052679342,-1174.3995393,6.904e-05,2]
[396564938,1765052679496,-1174.3995393,6.904e-05,2]
[396564939,1765052679529,-1174.3995393,6.904e-05,2]
[396564940,1765052679561,-1174.3995393,6.904e-05,2]
[396564941,1765052679592,-500.0,6.904e-05,2]
[396564942,1765052679624,-500.0,6.904e-05,2]
[396564943,1765052679656,-453.6127642,6.904e-05,2]
[396564944,1765052679839,-46.3872358,6.904e-05,2]
[396564945,1765052679870,-300.0,6.904e-05,2]
[396564946,1765052679908,-1162.65554392,6.904e-05,2]
[396564947,1765052679945,-1162.65554392,6.904e-05,2]
[396564948,1765052679984,-1162.65554392,6.904e-05,2]
[396564949,1765052680019,-1162.65554392,6.904e-05,2]
[396564950,1765052686056,199.15,6.647e-05,2]
[396564951,1765052687005,-189.03337398,6.835e-05,2]
[396564952,1765052689830,-338.57697314,6.835e-05,2]
[396564953,1765052693419,-533.52338104,6.767e-05,2]
[396564954,1765052695553,-236.52082467,6.767e-05,2]
[396564955,1765052695577,-144.84143404,6.835e-05,2]
[396564956,1765052698214,-286.62579853,6.835e-05,2]
[396564957,1765052698241,-36.15611378,6.904e-05,2]
[396564958,1765052700036,-264.36760307,6.767e-05,2]
[396564959,1765052700093,-22.25819546,6.767e-05,2]
[396564960,1765052702854,-248.62361005,6.903e-05,2]
[396564961,1765052705001,-51.37638995,6.903e-05,2]
[396564962,1765052705029,-124.40752039,6.903e-05,2]
[396564963,1765052708259,-272.52929848,6.834e-05,2]
[396564964,1765052711553,-78.84709147,6.834e-05,2]
[396564965,1765052711576,-78.49379308,6.903e-05,2]
[396564966,1765052713330,-97.09868653,6.903e-05,2]
[396564967,1765052713351,-196.61042892,6.903e-05,2]